{"text_format":"3","workbook":"xlsx","n_sheets":1,"sheets":["Lagerlista"],"not_rendered":{"images":1,"defined_names":3},"read":"whole","date_system":"1900"}

{"sheet":"Lagerlista","index":0,"n_rows":28,"n_cols":13,"rows_kept":28}
[{"$nulls":12}," "]
[{"$nulls":10},"Markera artiklar som ska beställas?","Ja"]
[null,"För ombeställning","Lager-ID","Namn","Beskrivning","Enhetspris","Antal i lager","Lagervärde","Ordernivå","Ordertid i dagar","Antal i nybeställning","Utgått?"]
[null,{"$f":"IFERROR((Lager_Lista_Tabell[[#This Row],[Antal i lager]]<=Lager_Lista_Tabell[[#This Row],[Ordernivå]])*(Lager_Lista_Tabell[[#This Row],[Utgått?]]=\"\")*vrdMarkering,0)","v":1},"IN0001","Artikel 1","Beskr. 1",{"v":51,"d":"51.00 kr"},25,{"$f":"Lager_Lista_Tabell[[#This Row],[Enhetspris]]*Lager_Lista_Tabell[[#This Row],[Antal i lager]]","v":{"v":1275,"d":"1,275.00 kr"}},29,13,50]
[null,{"$f":"IFERROR((Lager_Lista_Tabell[[#This Row],[Antal i lager]]<=Lager_Lista_Tabell[[#This Row],[Ordernivå]])*(Lager_Lista_Tabell[[#This Row],[Utgått?]]=\"\")*vrdMarkering,0)","v":1},"IN0002","Objekt 2","Beskr. 2",{"v":93,"d":"93.00 kr"},132,{"$f":"Lager_Lista_Tabell[[#This Row],[Enhetspris]]*Lager_Lista_Tabell[[#This Row],[Antal i lager]]","v":{"v":12276,"d":"12,276.00 kr"}},231,4,50]
[null,{"$f":"IFERROR((Lager_Lista_Tabell[[#This Row],[Antal i lager]]<=Lager_Lista_Tabell[[#This Row],[Ordernivå]])*(Lager_Lista_Tabell[[#This Row],[Utgått?]]=\"\")*vrdMarkering,0)","v":0},"IN0003","Objekt 3","Beskr. 3",{"v":57,"d":"57.00 kr"},151,{"$f":"Lager_Lista_Tabell[[#This Row],[Enhetspris]]*Lager_Lista_Tabell[[#This Row],[Antal i lager]]","v":{"v":8607,"d":"8,607.00 kr"}},114,11,150]
[null,{"$f":"IFERROR((Lager_Lista_Tabell[[#This Row],[Antal i lager]]<=Lager_Lista_Tabell[[#This Row],[Ordernivå]])*(Lager_Lista_Tabell[[#This Row],[Utgått?]]=\"\")*vrdMarkering,0)","v":0},"IN0004","Artikel 4","Beskr. 4",{"v":19,"d":"19.00 kr"},186,{"$f":"Lager_Lista_Tabell[[#This Row],[Enhetspris]]*Lager_Lista_Tabell[[#This Row],[Antal i lager]]","v":{"v":3534,"d":"3,534.00 kr"}},158,6,50]
[null,{"$f":"IFERROR((Lager_Lista_Tabell[[#This Row],[Antal i lager]]<=Lager_Lista_Tabell[[#This Row],[Ordernivå]])*(Lager_Lista_Tabell[[#This Row],[Utgått?]]=\"\")*vrdMarkering,0)","v":0},"IN0005","Artikel 5","Beskr. 5",{"v":75,"d":"75.00 kr"},62,{"$f":"Lager_Lista_Tabell[[#This Row],[Enhetspris]]*Lager_Lista_Tabell[[#This Row],[Antal i lager]]","v":{"v":4650,"d":"4,650.00 kr"}},39,12,50]
[null,{"$f":"IFERROR((Lager_Lista_Tabell[[#This Row],[Antal i lager]]<=Lager_Lista_Tabell[[#This Row],[Ordernivå]])*(Lager_Lista_Tabell[[#This Row],[Utgått?]]=\"\")*vrdMarkering,0)","v":1},"IN0006","Artikel 6","Beskr. 6",{"v":11,"d":"11.00 kr"},5,{"$f":"Lager_Lista_Tabell[[#This Row],[Enhetspris]]*Lager_Lista_Tabell[[#This Row],[Antal i lager]]","v":{"v":55,"d":"55.00 kr"}},9,13,150]
[null,{"$f":"IFERROR((Lager_Lista_Tabell[[#This Row],[Antal i lager]]<=Lager_Lista_Tabell[[#This Row],[Ordernivå]])*(Lager_Lista_Tabell[[#This Row],[Utgått?]]=\"\")*vrdMarkering,0)","v":0},"IN0007","Artikel 7","Beskr. 7",{"v":56,"d":"56.00 kr"},58,{"$f":"Lager_Lista_Tabell[[#This Row],[Enhetspris]]*Lager_Lista_Tabell[[#This Row],[Antal i lager]]","v":{"v":3248,"d":"3,248.00 kr"}},109,7,100,"Ja"]
[null,{"$f":"IFERROR((Lager_Lista_Tabell[[#This Row],[Antal i lager]]<=Lager_Lista_Tabell[[#This Row],[Ordernivå]])*(Lager_Lista_Tabell[[#This Row],[Utgått?]]=\"\")*vrdMarkering,0)","v":1},"IN0008","Artikel 8","Beskr. 8",{"v":38,"d":"38.00 kr"},101,{"$f":"Lager_Lista_Tabell[[#This Row],[Enhetspris]]*Lager_Lista_Tabell[[#This Row],[Antal i lager]]","v":{"v":3838,"d":"3,838.00 kr"}},162,3,100]
[null,{"$f":"IFERROR((Lager_Lista_Tabell[[#This Row],[Antal i lager]]<=Lager_Lista_Tabell[[#This Row],[Ordernivå]])*(Lager_Lista_Tabell[[#This Row],[Utgått?]]=\"\")*vrdMarkering,0)","v":0},"IN0009","Artikel 9","Beskr. 9",{"v":59,"d":"59.00 kr"},122,{"$f":"Lager_Lista_Tabell[[#This Row],[Enhetspris]]*Lager_Lista_Tabell[[#This Row],[Antal i lager]]","v":{"v":7198,"d":"7,198.00 kr"}},82,3,150]
[null,{"$f":"IFERROR((Lager_Lista_Tabell[[#This Row],[Antal i lager]]<=Lager_Lista_Tabell[[#This Row],[Ordernivå]])*(Lager_Lista_Tabell[[#This Row],[Utgått?]]=\"\")*vrdMarkering,0)","v":1},"IN0010","Artikel 10","Beskr. 10",{"v":50,"d":"50.00 kr"},175,{"$f":"Lager_Lista_Tabell[[#This Row],[Enhetspris]]*Lager_Lista_Tabell[[#This Row],[Antal i lager]]","v":{"v":8750,"d":"8,750.00 kr"}},283,8,150]
[null,{"$f":"IFERROR((Lager_Lista_Tabell[[#This Row],[Antal i lager]]<=Lager_Lista_Tabell[[#This Row],[Ordernivå]])*(Lager_Lista_Tabell[[#This Row],[Utgått?]]=\"\")*vrdMarkering,0)","v":1},"IN0011","Artikel 11","Beskr. 11",{"v":59,"d":"59.00 kr"},176,{"$f":"Lager_Lista_Tabell[[#This Row],[Enhetspris]]*Lager_Lista_Tabell[[#This Row],[Antal i lager]]","v":{"v":10384,"d":"10,384.00 kr"}},229,1,100]
[null,{"$f":"IFERROR((Lager_Lista_Tabell[[#This Row],[Antal i lager]]<=Lager_Lista_Tabell[[#This Row],[Ordernivå]])*(Lager_Lista_Tabell[[#This Row],[Utgått?]]=\"\")*vrdMarkering,0)","v":1},"IN0012","Artikel 12","Beskr. 12",{"v":18,"d":"18.00 kr"},22,{"$f":"Lager_Lista_Tabell[[#This Row],[Enhetspris]]*Lager_Lista_Tabell[[#This Row],[Antal i lager]]","v":{"v":396,"d":"396.00 kr"}},36,12,50]
[null,{"$f":"IFERROR((Lager_Lista_Tabell[[#This Row],[Antal i lager]]<=Lager_Lista_Tabell[[#This Row],[Ordernivå]])*(Lager_Lista_Tabell[[#This Row],[Utgått?]]=\"\")*vrdMarkering,0)","v":1},"IN0013","Artikel 13","Beskr. 13",{"v":26,"d":"26.00 kr"},72,{"$f":"Lager_Lista_Tabell[[#This Row],[Enhetspris]]*Lager_Lista_Tabell[[#This Row],[Antal i lager]]","v":{"v":1872,"d":"1,872.00 kr"}},102,9,100]
[null,{"$f":"IFERROR((Lager_Lista_Tabell[[#This Row],[Antal i lager]]<=Lager_Lista_Tabell[[#This Row],[Ordernivå]])*(Lager_Lista_Tabell[[#This Row],[Utgått?]]=\"\")*vrdMarkering,0)","v":1},"IN0014","Artikel 14","Beskr. 14",{"v":42,"d":"42.00 kr"},62,{"$f":"Lager_Lista_Tabell[[#This Row],[Enhetspris]]*Lager_Lista_Tabell[[#This Row],[Antal i lager]]","v":{"v":2604,"d":"2,604.00 kr"}},83,2,100]
[null,{"$f":"IFERROR((Lager_Lista_Tabell[[#This Row],[Antal i lager]]<=Lager_Lista_Tabell[[#This Row],[Ordernivå]])*(Lager_Lista_Tabell[[#This Row],[Utgått?]]=\"\")*vrdMarkering,0)","v":0},"IN0015","Artikel 15","Beskr. 15",{"v":32,"d":"32.00 kr"},46,{"$f":"Lager_Lista_Tabell[[#This Row],[Enhetspris]]*Lager_Lista_Tabell[[#This Row],[Antal i lager]]","v":{"v":1472,"d":"1,472.00 kr"}},23,15,50]
[null,{"$f":"IFERROR((Lager_Lista_Tabell[[#This Row],[Antal i lager]]<=Lager_Lista_Tabell[[#This Row],[Ordernivå]])*(Lager_Lista_Tabell[[#This Row],[Utgått?]]=\"\")*vrdMarkering,0)","v":1},"IN0016","Artikel 16","Beskr. 16",{"v":90,"d":"90.00 kr"},96,{"$f":"Lager_Lista_Tabell[[#This Row],[Enhetspris]]*Lager_Lista_Tabell[[#This Row],[Antal i lager]]","v":{"v":8640,"d":"8,640.00 kr"}},180,3,50]
[null,{"$f":"IFERROR((Lager_Lista_Tabell[[#This Row],[Antal i lager]]<=Lager_Lista_Tabell[[#This Row],[Ordernivå]])*(Lager_Lista_Tabell[[#This Row],[Utgått?]]=\"\")*vrdMarkering,0)","v":0},"IN0017","Artikel 17","Beskr. 17",{"v":97,"d":"97.00 kr"},57,{"$f":"Lager_Lista_Tabell[[#This Row],[Enhetspris]]*Lager_Lista_Tabell[[#This Row],[Antal i lager]]","v":{"v":5529,"d":"5,529.00 kr"}},98,12,50,"Ja"]
[null,{"$f":"IFERROR((Lager_Lista_Tabell[[#This Row],[Antal i lager]]<=Lager_Lista_Tabell[[#This Row],[Ordernivå]])*(Lager_Lista_Tabell[[#This Row],[Utgått?]]=\"\")*vrdMarkering,0)","v":1},"IN0018","Artikel 18","Beskr. 18",{"v":12,"d":"12.00 kr"},6,{"$f":"Lager_Lista_Tabell[[#This Row],[Enhetspris]]*Lager_Lista_Tabell[[#This Row],[Antal i lager]]","v":{"v":72,"d":"72.00 kr"}},7,13,50]
[null,{"$f":"IFERROR((Lager_Lista_Tabell[[#This Row],[Antal i lager]]<=Lager_Lista_Tabell[[#This Row],[Ordernivå]])*(Lager_Lista_Tabell[[#This Row],[Utgått?]]=\"\")*vrdMarkering,0)","v":1},"IN0019","Artikel 19","Beskr. 19",{"v":82,"d":"82.00 kr"},143,{"$f":"Lager_Lista_Tabell[[#This Row],[Enhetspris]]*Lager_Lista_Tabell[[#This Row],[Antal i lager]]","v":{"v":11726,"d":"11,726.00 kr"}},164,12,150]
[null,{"$f":"IFERROR((Lager_Lista_Tabell[[#This Row],[Antal i lager]]<=Lager_Lista_Tabell[[#This Row],[Ordernivå]])*(Lager_Lista_Tabell[[#This Row],[Utgått?]]=\"\")*vrdMarkering,0)","v":0},"IN0020","Artikel 20","Beskr. 20",{"v":16,"d":"16.00 kr"},124,{"$f":"Lager_Lista_Tabell[[#This Row],[Enhetspris]]*Lager_Lista_Tabell[[#This Row],[Antal i lager]]","v":{"v":1984,"d":"1,984.00 kr"}},113,14,50]
[null,{"$f":"IFERROR((Lager_Lista_Tabell[[#This Row],[Antal i lager]]<=Lager_Lista_Tabell[[#This Row],[Ordernivå]])*(Lager_Lista_Tabell[[#This Row],[Utgått?]]=\"\")*vrdMarkering,0)","v":0},"IN0021","Artikel 21","Beskr. 21",{"v":19,"d":"19.00 kr"},112,{"$f":"Lager_Lista_Tabell[[#This Row],[Enhetspris]]*Lager_Lista_Tabell[[#This Row],[Antal i lager]]","v":{"v":2128,"d":"2,128.00 kr"}},75,11,50]
[null,{"$f":"IFERROR((Lager_Lista_Tabell[[#This Row],[Antal i lager]]<=Lager_Lista_Tabell[[#This Row],[Ordernivå]])*(Lager_Lista_Tabell[[#This Row],[Utgått?]]=\"\")*vrdMarkering,0)","v":0},"IN0022","Artikel 22","Beskr. 22",{"v":24,"d":"24.00 kr"},182,{"$f":"Lager_Lista_Tabell[[#This Row],[Enhetspris]]*Lager_Lista_Tabell[[#This Row],[Antal i lager]]","v":{"v":4368,"d":"4,368.00 kr"}},132,15,150]
[null,{"$f":"IFERROR((Lager_Lista_Tabell[[#This Row],[Antal i lager]]<=Lager_Lista_Tabell[[#This Row],[Ordernivå]])*(Lager_Lista_Tabell[[#This Row],[Utgått?]]=\"\")*vrdMarkering,0)","v":0},"IN0023","Artikel 23","Beskr. 23",{"v":29,"d":"29.00 kr"},106,{"$f":"Lager_Lista_Tabell[[#This Row],[Enhetspris]]*Lager_Lista_Tabell[[#This Row],[Antal i lager]]","v":{"v":3074,"d":"3,074.00 kr"}},142,1,150,"Ja"]
[null,{"$f":"IFERROR((Lager_Lista_Tabell[[#This Row],[Antal i lager]]<=Lager_Lista_Tabell[[#This Row],[Ordernivå]])*(Lager_Lista_Tabell[[#This Row],[Utgått?]]=\"\")*vrdMarkering,0)","v":0},"IN0024","Artikel 24","Beskr. 24",{"v":75,"d":"75.00 kr"},173,{"$f":"Lager_Lista_Tabell[[#This Row],[Enhetspris]]*Lager_Lista_Tabell[[#This Row],[Antal i lager]]","v":{"v":12975,"d":"12,975.00 kr"}},127,9,100]
[null,{"$f":"IFERROR((Lager_Lista_Tabell[[#This Row],[Antal i lager]]<=Lager_Lista_Tabell[[#This Row],[Ordernivå]])*(Lager_Lista_Tabell[[#This Row],[Utgått?]]=\"\")*vrdMarkering,0)","v":0},"IN0025","Artikel 25","Beskr. 25",{"v":14,"d":"14.00 kr"},28,{"$f":"Lager_Lista_Tabell[[#This Row],[Enhetspris]]*Lager_Lista_Tabell[[#This Row],[Antal i lager]]","v":{"v":392,"d":"392.00 kr"}},21,8,50]